[Event "Seniors-LEM-65 Sachsen-Anhalt 2024"]
[Site "Magdeburg"]
[Date "2024.07.04"]
[Round "4.10"]
[White "Krueger, Wolfgang"]
[Black "Richter, Rainer"]
[Result "1/2-1/2"]
[ECO "B24"]
[WhiteElo "2054"]
[BlackElo "1981"]
[Annotator "NA RC"]
[PlyCount "35"]
[EventDate "2024.06.25"]
[EventType "swiss"]
[EventCountry "GER"]
[SourceTitle "playchess.com"]
[Source "ChessBase"]
[SourceQuality "1"]
[TimeControl "40/5400+30:1800+30"]

1. e4 {[%emt 0:00:03]} c5 {[%emt 0:00:07]} 2. Nc3 {[%emt 0:00:18]} e6 {[%emt 0:01:11]} 3. g3 {[%emt 0:01:04]} Nc6 {[%emt 0:02:09]} 4. Bg2 {[%emt 0:00:17]} Rb8 {[%emt 0:00:01]} 5. a4 {[%emt 0:00:50]} a6 {[%emt 0:00:23]} 6. Nge2 {[%emt 0:09:20]} b5 {[%emt 0:24:42]} 7. axb5 {[%emt 0:04:35]} axb5 {[%emt 0:00:11]} 8. d4 {[%emt 0:00:25]} b4 {[%emt 0:00:06]} 9. Nb1 {[%emt 0:00:28]} cxd4 {[%emt 0:05:50]} 10. Nxd4 {[%emt 0:05:53]} Nxd4 {[%emt 0:00:34]} 11. Qxd4 {[%emt 0:00:03]} Ne7 {[%emt 0:00:12]} 12. Bf4 {[%emt 0:08:52]} Nc6 {[%emt 0:00:17]} 13. Qd3 {[%emt 0:00:51]} e5 {[%emt 0:07:03]} 14. Be3 {[%emt 0:00:35]} Be7 {[%emt 0:00:19]} 15. O-O {[%emt 0:01:36]} O-O {[%emt 0:00:03]} 16. Rd1 $11 {[%emt 0:08:39]} Qc7 {[%emt 0:00:32]} 17. Nd2 {[%emt 0:03:17]} d6 {[%emt 0:09:29]} 18. Nc4 {[%emt 0:04:39]} 1/2-1/2

[Event "Seniors-LEM-65 Sachsen-Anhalt 2024"]
[Site "Magdeburg"]
[Date "2024.07.04"]
[Round "4.11"]
[White "Heise, Juergen"]
[Black "Koehler, Gerhard"]
[Result "0-1"]
[ECO "A30"]
[WhiteElo "1930"]
[BlackElo "2204"]
[Annotator "RC"]
[PlyCount "36"]
[EventDate "2024.06.25"]
[EventType "swiss"]
[EventCountry "GER"]
[SourceTitle "playchess.com"]
[Source "ChessBase"]
[SourceQuality "1"]
[TimeControl "40/5400+30:1800+30"]

1. b3 {[%emt 0:00:03]} Nf6 {[%emt 0:00:31]} 2. Bb2 {[%emt 0:00:07]} c5 {[%emt 0:03:09]} 3. c4 {[%emt 0:02:41]} Nc6 {[%emt 0:02:31]} 4. g3 {[%emt 0:01:47]} e6 {[%emt 0:02:02]} 5. Nc3 {[%emt 0:02:07]} d5 {[%emt 0:02:50]} 6. Bg2 {[%emt 0:01:56]} Be7 {[%emt 0:03:04]} 7. e3 {[%emt 0:00:54]} Nb4 {[%emt 0:19:14]} 8. Kf1 {[%emt 0:13:38]} O-O {[%emt 0:09:48]} 9. Qe2 {[%emt 0:07:01]} dxc4 {[%emt 0:08:36]} 10. bxc4 {[%emt 0:01:09]} Nd3 {[%emt 0:01:03]} 11. Rb1 {[%emt 0:01:01]} Rb8 {[%emt 0:04:36]} 12. Ba1 {[%emt 0:00:37]} b6 {[%emt 0:07:36]} 13. Ne4 {[%emt 0:03:36]} Ba6 {[%emt 0:01:43]} 14. Nxf6+ {[%emt 0:02:58]} Bxf6 {[%emt 0:00:11]} 15. Bxf6 {[%emt 0:00:08]} gxf6 {[%emt 0:00:14]} 16. Be4 {[%emt 0:05:09]} Bxc4 {[%emt 0:04:35]} 17. Bxh7+ {[%emt 0:01:24]} Kh8 {[%emt 0:00:10]} 18. Kg2 {[%emt 0:13:55]} Nf4+ {[%emt 0:27:37]} 0-1

[Event "Seniors-LEM-65 Sachsen-Anhalt 2024"]
[Site "Magdeburg"]
[Date "2024.07.04"]
[Round "4.12"]
[White "Andersen, Knut"]
[Black "Luebeck, Stephan"]
[Result "1/2-1/2"]
[ECO "E94"]
[WhiteElo "2104"]
[BlackElo "1942"]
[Annotator "NA RC"]
[PlyCount "120"]
[EventDate "2024.06.25"]
[EventType "swiss"]
[EventCountry "GER"]
[SourceTitle "playchess.com"]
[Source "ChessBase"]
[SourceQuality "1"]
[TimeControl "40/5400+30:1800+30"]

1. d4 {[%emt 0:00:11]} Nf6 {[%emt 0:00:09]} 2. Nf3 {[%emt 0:00:14]} g6 {[%emt 0:00:06]} 3. c4 {[%emt 0:00:21]} Bg7 {[%emt 0:00:13]} 4. Nc3 {[%emt 0:00:15]} O-O {[%emt 0:00:15]} 5. e4 {[%emt 0:00:21]} d6 {[%emt 0:00:06]} 6. h3 {[%emt 0:00:19]} e5 {[%emt 0:00:34]} 7. dxe5 {[%emt 0:00:22]} dxe5 {[%emt 0:00:12]} 8. Qxd8 {[%emt 0:00:11]} Rxd8 {[%emt 0:00:09]} 9. Be2 {[%emt 0:00:15]} c6 {[%emt 0:01:43]} 10. Be3 {[%emt 0:00:41]} Na6 {[%emt 0:00:54]} 11. O-O {[%emt 0:01:46]} Nh5 {[%emt 0:01:59]} 12. Rfd1 {[%emt 0:01:22]} Re8 {[%emt 0:01:23]} 13. g4 {[%emt 0:02:33]} Nf4 {[%emt 0:01:20]} 14. Bf1 {[%emt 0:00:15]} f5 $19 {[%emt 0:06:14]} 15. Nh2 {[%emt 0:04:18]} fxg4 {[%emt 0:03:52]} 16. hxg4 {[%emt 0:01:07]} Nc7 {[%emt 0:02:56]} 17. Ne2 {[%emt 0:02:59]} Nce6 {[%emt 0:02:47]} 18. Rd2 {[%emt 0:03:02]} Nxe2+ {[%emt 0:03:18]} 19. Bxe2 {[%emt 0:00:42]} Nd4 {[%emt 0:00:45]} 20. Bd1 {[%emt 0:04:29]} Be6 {[%emt 0:02:06]} 21. Rc1 {[%emt 0:01:04]} c5 {[%emt 0:04:07]} 22. Kg2 {[%emt 0:03:57]} Bd7 {[%emt 0:06:40]} 23. Nf1 {[%emt 0:01:32]} Bc6 {[%emt 0:01:12]} 24. Ng3 {[%emt 0:00:59]} Rad8 {[%emt 0:02:43]} 25. f3 {[%emt 0:07:10]} Ne6 {[%emt 0:04:49]} 26. Rd5 {[%emt 0:01:08]} Nf4+ {[%emt 0:04:21]} 27. Kf1 {[%emt 0:01:46]} b6 {[%emt 0:07:54]} 28. Rxd8 {[%emt 0:03:03]} Rxd8 {[%emt 0:00:08]} 29. Be2 {[%emt 0:00:17]} Ne6 {[%emt 0:02:03]} 30. Kf2 {[%emt 0:07:44]} Bf6 {[%emt 0:03:38]} 31. Rh1 {[%emt 0:03:27]} Bg5 {[%emt 0:01:08]} 32. Bxg5 {[%emt 0:02:44]} Nxg5 {[%emt 0:00:09]} 33. Ke3 {[%emt 0:00:15]} Ne6 {[%emt 0:01:53]} 34. Rd1 {[%emt 0:04:30]} Rd4 {[%emt 0:03:17]} 35. Rxd4 {[%emt 0:00:59]} cxd4+ {[%emt 0:00:55]} 36. Kd2 {[%emt 0:00:53]} a5 {[%emt 0:00:52]} 37. b3 {[%emt 0:00:26]} Kf7 {[%emt 0:01:22]} 38. a3 {[%emt 0:00:29]} Kf6 {[%emt 0:01:32]} 39. b4 {[%emt 0:00:41]} Kg5 {[%emt 0:00:20]} 40. Nh1 {[%emt 0:01:04]} h5 {[%emt 0:01:39]} 41. c5 {[%emt 0:30:54]} bxc5 {[%emt 0:38:05]} 42. Bc4 {[%emt 0:01:51]} Nc7 {[%emt 0:01:21]} 43. bxa5 {[%emt 0:01:41]} hxg4 {[%emt 0:03:17]} 44. fxg4 {[%emt 0:01:09]} Bxe4 {[%emt 0:05:04]} 45. Nf2 {[%emt 0:00:17]} Bd5 {[%emt 0:06:55]} 46. Bxd5 {[%emt 0:01:38]} Nxd5 {[%emt 0:00:07]} 47. Kd3 {[%emt 0:00:55]} Kf4 {[%emt 0:02:20]} 48. Kc4 {[%emt 0:00:22]} Nc7 {[%emt 0:00:29]} 49. Kxc5 {[%emt 0:00:15]} Ke3 {[%emt 0:00:41]} 50. Nd1+ {[%emt 0:01:21]} Ke2 {[%emt 0:02:30]} 51. Nb2 {[%emt 0:00:17]} d3 {[%emt 0:01:35]} 52. Kc6 {[%emt 0:00:41]} Na6 {[%emt 0:01:51]} 53. Kb6 {[%emt 0:00:14]} e4 {[%emt 0:00:00]} 54. Kxa6 {[%emt 0:00:00]} e3 {[%emt 0:00:00]} 55. Kb6 {[%emt 0:00:00]} d2 {[%emt 0:00:00]} 56. a6 {[%emt 0:00:00]} d1=Q {[%emt 0:02:32]} 57. Nxd1 {[%emt 0:37:34]} Kxd1 {[%emt 0:00:00]} 58. a7 {[%emt 0:00:00]} e2 {[%emt 0:00:00]} 59. a8=Q {[%emt 0:00:00]} e1=Q {[%emt 0:00:00]} 60. Qf3+ {[%emt 0:00:00]} Kc2 {[%emt 0:00:00]} 1/2-1/2

[Event "Seniors-LEM-65 Sachsen-Anhalt 2024"]
[Site "Magdeburg"]
[Date "2024.07.04"]
[Round "4.14"]
[White "Costello, Colin A"]
[Black "Ruether, Rudolf"]
[Result "0-1"]
[ECO "A29"]
[WhiteElo "1911"]
[BlackElo "2065"]
[Annotator "NA RC"]
[PlyCount "82"]
[EventDate "2024.06.25"]
[EventType "swiss"]
[EventCountry "GER"]
[SourceTitle "playchess.com"]
[Source "ChessBase"]
[SourceQuality "1"]
[TimeControl "40/5400+30:1800+30"]

1. c4 {[%emt 0:00:02]} e5 {[%emt 0:00:16]} 2. Nc3 {[%emt 0:00:10]} Nf6 {[%emt 0:00:18]} 3. Nf3 {[%emt 0:01:04]} Nc6 {[%emt 0:00:33]} 4. d3 {[%emt 0:00:18]} d5 {[%emt 0:03:25]} 5. cxd5 {[%emt 0:00:12]} Nxd5 {[%emt 0:00:06]} 6. g3 {[%emt 0:01:06]} Be7 {[%emt 0:01:39]} 7. Bg2 {[%emt 0:00:11]} Be6 {[%emt 0:01:43]} 8. O-O {[%emt 0:03:30]} O-O {[%emt 0:02:38]} 9. Bd2 {[%emt 0:06:51]} Qd7 {[%emt 0:11:25]} 10. Rc1 {[%emt 0:03:44]} f6 {[%emt 0:06:53]} 11. Ne4 {[%emt 0:04:48]} Rad8 {[%emt 0:13:22]} 12. Qc2 {[%emt 0:01:14]} Ndb4 {[%emt 0:20:38]} 13. Bxb4 {[%emt 0:00:32]} Nxb4 {[%emt 0:06:00]} 14. Qxc7 {[%emt 0:00:25]} Nxa2 {[%emt 0:00:21]} 15. Qxd7 {[%emt 0:00:36]} Rxd7 {[%emt 0:02:05]} 16. Ra1 {[%emt 0:00:21]} Rc8 {[%emt 0:03:21]} 17. Rxa2 {[%emt 0:04:06]} Bxa2 $17 {[%emt 0:00:22]} 18. Bh3 {[%emt 0:00:06]} Rdc7 {[%emt 0:02:58]} 19. Bxc8 {[%emt 0:00:09]} Rxc8 {[%emt 0:00:03]} 20. Ra1 {[%emt 0:00:33]} Be6 {[%emt 0:03:12]} 21. Nc3 {[%emt 0:06:45]} a6 {[%emt 0:01:22]} 22. Kg2 {[%emt 0:00:21]} Bb4 {[%emt 0:01:52]} 23. Rc1 {[%emt 0:02:03]} Kf7 {[%emt 0:00:57]} 24. Kf1 {[%emt 0:05:42]} a5 {[%emt 0:04:57]} 25. Ra1 {[%emt 0:07:03]} Bh3+ {[%emt 0:01:27]} 26. Kg1 {[%emt 0:00:07]} Bxc3 {[%emt 0:00:47]} 27. bxc3 {[%emt 0:00:10]} Rxc3 {[%emt 0:00:04]} 28. Ne1 {[%emt 0:00:42]} a4 {[%emt 0:01:22]} 29. f4 {[%emt 0:00:20]} a3 {[%emt 0:03:06]} 30. fxe5 {[%emt 0:00:11]} b5 {[%emt 0:01:27]} 31. Nf3 {[%emt 0:01:25]} b4 {[%emt 0:01:30]} 32. Kf2 {[%emt 0:01:26]} Be6 {[%emt 0:03:24]} 33. Nd4 {[%emt 0:04:23]} fxe5 {[%emt 0:00:25]} 34. Nxe6 {[%emt 0:00:31]} Kxe6 {[%emt 0:00:07]} 35. Ke3 {[%emt 0:00:20]} Rc2 {[%emt 0:00:55]} 36. d4 {[%emt 0:00:12]} a2 {[%emt 0:01:00]} 37. Kd3 {[%emt 0:00:23]} b3 {[%emt 0:00:16]} 38. d5+ {[%emt 0:00:54]} Kxd5 {[%emt 0:00:18]} 39. Rd1 {[%emt 0:00:08]} e4+ {[%emt 0:01:00]} 40. Ke3+ {[%emt 0:00:09]} Ke5 {[%emt 0:00:16]} 41. g4 {[%emt 0:31:18]} b2 {[%emt 0:30:41]} 0-1

[Event "Seniors-LEM-65 Sachsen-Anhalt 2024"]
[Site "Magdeburg"]
[Date "2024.07.04"]
[Round "4.15"]
[White "Matthey, Harald"]
[Black "Krieg, Peter"]
[Result "0-1"]
[ECO "D02"]
[WhiteElo "2064"]
[BlackElo "1920"]
[Annotator "NA RC"]
[PlyCount "76"]
[EventDate "2024.06.25"]
[EventType "swiss"]
[EventCountry "GER"]
[SourceTitle "playchess.com"]
[Source "ChessBase"]
[SourceQuality "1"]
[TimeControl "40/5400+30:1800+30"]

1. Nf3 {[%emt 0:00:02]} Nf6 {[%emt 0:00:09]} 2. g3 {[%emt 0:00:35]} g6 {[%emt 0:00:18]} 3. Bg2 {[%emt 0:00:17]} Bg7 {[%emt 0:00:06]} 4. O-O {[%emt 0:00:07]} O-O {[%emt 0:00:07]} 5. d4 {[%emt 0:01:04]} d5 {[%emt 0:00:19]} 6. Nbd2 {[%emt 0:01:02]} b6 {[%emt 0:01:17]} 7. Ne5 {[%emt 0:03:47]} Bb7 {[%emt 0:04:02]} 8. c4 {[%emt 0:16:52]} e6 {[%emt 0:16:44]} 9. e3 {[%emt 0:06:38]} Nbd7 {[%emt 0:12:26]} 10. f4 {[%emt 0:05:21]} Qc8 {[%emt 0:09:08]} 11. b4 {[%emt 0:08:05]} dxc4 {[%emt 0:12:43]} 12. Nc6 $15 {[%emt 0:02:58]} (12. Bxb7 $11 {should be considered.} Qxb7 13. Ndxc4) 12... Re8 {[%emt 0:05:04]} 13. Nxc4 {[%emt 0:01:18]} Nd5 {[%emt 0:01:58]} 14. b5 {[%emt 0:03:09]} a6 {[%emt 0:01:48]} 15. Qb3 {[%emt 0:08:52]} axb5 {[%emt 0:09:54]} 16. Qxb5 {[%emt 0:00:31]} Ba6 {[%emt 0:02:40]} 17. Qb3 {[%emt 0:00:36]} Nc5 {[%emt 0:08:37]} 18. Qc2 {[%emt 0:02:57]} Bb5 {[%emt 0:00:50]} 19. N6e5 {[%emt 0:01:34]} Na6 {[%emt 0:02:33]} 20. a4 {[%emt 0:02:52]} Nab4 {[%emt 0:00:24]} 21. Qb3 {[%emt 0:01:01]} Bxe5 {[%emt 0:00:52]} 22. fxe5 {[%emt 0:00:46]} Qa6 {[%emt 0:00:23]} 23. axb5 {[%emt 0:13:36]} Qxa1 {[%emt 0:00:08]} 24. e4 {[%emt 0:01:15]} Qxd4+ {[%emt 0:01:44]} 25. Kh1 {[%emt 0:00:07]} Qc3 {[%emt 0:00:44]} 26. Qd1 {[%emt 0:02:06]} Qxc4 {[%emt 0:00:48]} 27. exd5 {[%emt 0:00:19]} Nxd5 {[%emt 0:00:34]} 28. Qf3 {[%emt 0:00:19]} Re7 {[%emt 0:02:22]} 29. Bg5 {[%emt 0:06:30]} Rd7 {[%emt 0:00:41]} 30. h4 {[%emt 0:00:13]} h5 {[%emt 0:00:43]} 31. Rc1 {[%emt 0:01:38]} Qd4 {[%emt 0:00:45]} 32. Re1 {[%emt 0:00:31]} Ra1 {[%emt 0:00:27]} 33. Qe2 {[%emt 0:00:52]} Rxe1+ {[%emt 0:00:22]} 34. Qxe1 {[%emt 0:00:03]} Qc3 {[%emt 0:00:35]} 35. Bd2 {[%emt 0:00:32]} Qd3 {[%emt 0:00:49]} 36. Bf1 {[%emt 0:00:44]} Qf5 {[%emt 0:01:14]} 37. Kh2 {[%emt 0:00:32]} Qc2 {[%emt 0:00:26]} 38. Bg2 {[%emt 0:00:14]} Qb2 {[%emt 0:04:46]} 0-1

[Event "Seniors-LEM-65 Sachsen-Anhalt 2024"]
[Site "Magdeburg"]
[Date "2024.07.04"]
[Round "4.16"]
[White "Haase, Reinhard"]
[Black "Niebuhr, Gerd"]
[Result "1-0"]
[ECO "E11"]
[WhiteElo "2044"]
[BlackElo "1917"]
[Annotator "NA RC"]
[PlyCount "67"]
[EventDate "2024.06.25"]
[EventType "swiss"]
[EventCountry "GER"]
[SourceTitle "playchess.com"]
[Source "ChessBase"]
[SourceQuality "1"]
[TimeControl "40/5400+30:1800+30"]

1. d4 {[%emt 0:00:05]} Nf6 {[%emt 0:00:22]} 2. c4 {[%emt 0:00:09]} e6 {[%emt 0:00:14]} 3. g3 {[%emt 0:00:11]} Bb4+ {[%emt 0:02:37]} 4. Bd2 {[%emt 0:00:14]} Qe7 {[%emt 0:01:16]} 5. Bg2 {[%emt 0:01:02]} Nc6 {[%emt 0:01:38]} 6. Nf3 {[%emt 0:06:27]} Bxd2+ {[%emt 0:03:14]} 7. Nbxd2 {[%emt 0:00:12]} O-O {[%emt 0:00:57]} 8. O-O {[%emt 0:00:39]} d6 {[%emt 0:05:55]} 9. e4 {[%emt 0:04:12]} e5 {[%emt 0:02:19]} 10. d5 {[%emt 0:00:36]} Nb8 {[%emt 0:02:41]} 11. h3 {[%emt 0:00:32]} a5 {[%emt 0:01:36]} 12. Ne1 {[%emt 0:02:04] E11: Bogo-Indian.} Na6 {[%emt 0:02:21]} 13. Nd3 {[%emt 0:01:23]} Nd7 {[%emt 0:00:37]} 14. a3 {[%emt 0:09:07]} Nac5 {[%emt 0:01:28]} 15. Nxc5 {[%emt 0:00:44]} Nxc5 {[%emt 0:00:14]} 16. b4 {[%emt 0:02:03]} axb4 {[%emt 0:00:13]} 17. axb4 {[%emt 0:00:07]} Rxa1 {[%emt 0:00:12]} 18. Qxa1 {[%emt 0:00:06]} Na6 {[%emt 0:00:12]} 19. Qc3 {[%emt 0:04:57]} f5 {[%emt 0:01:13]} 20. Kh2 {[%emt 0:05:45]} f4 {[%emt 0:00:34]} 21. Nf3 {[%emt 0:08:51]} g5 {[%emt 0:02:23]} 22. Ne1 {[%emt 0:05:00]} Qf6 {[%emt 0:03:44]} 23. c5 {[%emt 0:05:27]} h5 $14 {[%emt 0:08:05]} (23... g4 $11) 24. Rg1 {[%emt 0:06:09]} Qe7 {[%emt 0:07:09]} 25. Nd3 {[%emt 0:01:27]} f3 {[%emt 0:04:13]} 26. Bf1 {[%emt 0:02:17]} Bd7 {[%emt 0:01:51]} 27. c6 {[%emt 0:06:44]} bxc6 {[%emt 0:02:13]} 28. dxc6 {[%emt 0:00:01]} Bc8 {[%emt 0:00:55]} 29. b5 {[%emt 0:03:02]} Nc5 {[%emt 0:00:14]} 30. Nxc5 {[%emt 0:01:08]} dxc5 {[%emt 0:00:16]} 31. Bc4+ {[%emt 0:00:55]} Kg7 {[%emt 0:00:40]} 32. Bb3 {[%emt 0:07:36]} g4 {[%emt 0:00:42]} 33. h4 {[%emt 0:00:24]} Rd8 {[%emt 0:00:33]} 34. Bd5 {[%emt 0:17:54]} 1-0

[Event "Seniors-LEM-65 Sachsen-Anhalt 2024"]
[Site "Magdeburg"]
[Date "2024.07.04"]
[Round "4.17"]
[White "Kopp, Peter"]
[Black "Albert, Gerhard"]
[Result "0-1"]
[ECO "A07"]
[WhiteElo "2014"]
[BlackElo "1888"]
[Annotator "NA RC"]
[PlyCount "62"]
[EventDate "2024.06.25"]
[EventType "swiss"]
[EventCountry "GER"]
[SourceTitle "playchess.com"]
[Source "ChessBase"]
[SourceQuality "1"]
[TimeControl "40/5400+30:1800+30"]

1. Nf3 {[%emt 0:00:04]} d5 {[%emt 0:00:30]} 2. g3 {[%emt 0:00:06]} Nf6 {[%emt 0:00:26]} 3. Bg2 {[%emt 0:00:07]} e6 {[%emt 0:00:34]} 4. d3 {[%emt 0:00:26]} Bb4+ {[%emt 0:00:48]} 5. c3 {[%emt 0:00:37]} Be7 {[%emt 0:00:20]} 6. Nbd2 {[%emt 0:00:17] A07: Réti Opening: New York and Capablanca Systems.} O-O {[%emt 0:01:15]} 7. O-O {[%emt 0:00:10]} Nbd7 {[%emt 0:01:26]} 8. e4 {[%emt 0:00:30]} Nc5 {[%emt 0:01:45]} 9. e5 {[%emt 0:01:02]} Nfd7 {[%emt 0:00:14]} 10. Qe2 {[%emt 0:00:35]} c6 {[%emt 0:00:40]} 11. d4 {[%emt 0:00:49]} Na6 {[%emt 0:00:20]} 12. h4 {[%emt 0:01:01]} Nc7 {[%emt 0:00:59]} 13. Re1 {[%emt 0:00:31]} b6 {[%emt 0:00:13]} 14. Bf1 {[%emt 0:02:38]} Ba6 {[%emt 0:00:50]} 15. Qd1 {[%emt 0:00:25]} Bxf1 {[%emt 0:00:12]} 16. Nxf1 {[%emt 0:00:13]} c5 {[%emt 0:00:23]} 17. Bg5 {[%emt 0:02:31]} b5 {[%emt 0:04:55]} 18. N1h2 {[%emt 0:02:31]} h6 {[%emt 0:01:10]} 19. Bxe7 {[%emt 0:01:07]} Qxe7 {[%emt 0:00:19]} 20. Ng4 {[%emt 0:02:22]} Rfb8 {[%emt 0:01:58]} 21. Qd2 {[%emt 0:03:01]} a5 {[%emt 0:06:16]} 22. dxc5 {[%emt 0:08:53]} Nxc5 {[%emt 0:01:39]} 23. Nd4 {[%emt 0:00:11]} Qf8 {[%emt 0:04:26]} 24. f3 {[%emt 0:05:08]} Rb6 {[%emt 0:03:22]} 25. Kg2 {[%emt 0:03:22]} Rab8 {[%emt 0:01:41]} 26. Nf2 {[%emt 0:08:36]} N7a6 {[%emt 0:03:27]} 27. b4 {[%emt 0:02:56]} axb4 {[%emt 0:00:50]} 28. cxb4 {[%emt 0:00:03]} Na4 {[%emt 0:01:30]} 29. Nd3 {[%emt 0:00:13]} Rc8 {[%emt 0:01:36]} 30. Rac1 {[%emt 0:00:13]} Rc4 {[%emt 0:00:21]} 31. a3 {[%emt 0:01:22]} Rxd4 $19 {[%emt 0:00:32]} 0-1

[Event "Seniors-LEM-65 Sachsen-Anhalt 2024"]
[Site "Magdeburg"]
[Date "2024.07.04"]
[Round "4.19"]
[White "Manthey, Wolfgang"]
[Black "Poetke, Dan-Peter"]
[Result "0-1"]
[ECO "D05"]
[WhiteElo "1888"]
[BlackElo "1968"]
[Annotator "NA RC"]
[PlyCount "78"]
[EventDate "2024.06.25"]
[EventType "swiss"]
[EventCountry "GER"]
[SourceTitle "playchess.com"]
[Source "ChessBase"]
[SourceQuality "1"]
[TimeControl "40/5400+30:1800+30"]

1. d4 {[%emt 0:00:08]} Nf6 {[%emt 0:00:06]} 2. Nf3 {[%emt 0:00:13]} d5 {[%emt 0:00:07]} 3. e3 {[%emt 0:00:11]} e6 {[%emt 0:00:09]} 4. Bd3 {[%emt 0:00:12]} c5 {[%emt 0:00:10]} 5. b3 {[%emt 0:00:08]} Qc7 {[%emt 0:00:52]} 6. Qe2 {[%emt 0:11:00]} Nc6 {[%emt 0:00:29]} 7. Bb2 {[%emt 0:02:40]} cxd4 {[%emt 0:05:06]} 8. exd4 {[%emt 0:00:37]} Bb4+ {[%emt 0:05:35]} 9. c3 {[%emt 0:06:38]} Bd6 {[%emt 0:01:05]} 10. O-O {[%emt 0:04:47]} O-O {[%emt 0:00:05]} 11. Na3 {[%emt 0:06:10]} a6 {[%emt 0:02:18]} 12. c4 {[%emt 0:00:37]} Re8 {[%emt 0:09:44]} 13. Ne5 {[%emt 0:02:10]} Nxd4 {[%emt 0:14:08]} 14. Bxd4 {[%emt 0:02:47]} Bxa3 {[%emt 0:00:35]} 15. Qe3 {[%emt 0:05:46]} Bd6 {[%emt 0:08:29]} 16. Rac1 $11 {[%emt 0:07:32]} Qd8 {[%emt 0:02:39]} 17. c5 {[%emt 0:04:16]} Bc7 {[%emt 0:09:05]} 18. f4 {[%emt 0:02:27]} Nd7 {[%emt 0:14:00]} 19. Qh3 {[%emt 0:04:52]} f5 {[%emt 0:00:27]} 20. Rf3 {[%emt 0:06:18]} Nxe5 {[%emt 0:01:07]} 21. fxe5 {[%emt 0:00:42]} Bd7 {[%emt 0:01:23]} 22. Qh5 {[%emt 0:02:18]} Qe7 {[%emt 0:01:58]} 23. Rh3 {[%emt 0:01:38]} g6 {[%emt 0:00:06]} 24. Qf3 {[%emt 0:00:39]} Rf8 {[%emt 0:04:22]} 25. c6 {[%emt 0:00:25]} Bxc6 {[%emt 0:00:06]} 26. Bc5 {[%emt 0:00:22]} Qg5 {[%emt 0:00:39]} 27. Be3 {[%emt 0:01:28]} f4 {[%emt 0:02:17]} 28. Bc5 {[%emt 0:01:25]} Rf7 {[%emt 0:00:59]} 29. Bd6 {[%emt 0:01:24]} d4 {[%emt 0:02:15]} 30. Be4 {[%emt 0:00:34]} Bxe4 {[%emt 0:00:04]} 31. Qxe4 {[%emt 0:00:18]} f3 {[%emt 0:00:10]} 32. Qc2 {[%emt 0:00:54]} Qe3+ {[%emt 0:02:44]} 33. Kh1 {[%emt 0:00:32]} d3 {[%emt 0:01:23]} 34. Qc4 {[%emt 0:01:16]} Bxd6 {[%emt 0:04:12]} 35. exd6 {[%emt 0:00:15]} f2 {[%emt 0:04:55]} 36. Rf1 {[%emt 0:02:23]} Qe2 {[%emt 0:02:39]} 37. Qc1 {[%emt 0:02:32]} d2 {[%emt 0:00:28]} 38. Qc4 {[%emt 0:01:15]} Qxc4 {[%emt 0:00:38]} 39. bxc4 {[%emt 0:00:07]} d1=Q {[%emt 0:00:18]} 0-1

[Event "Seniors-LEM-65 Sachsen-Anhalt 2024"]
[Site "Magdeburg"]
[Date "2024.07.04"]
[Round "4.20"]
[White "Renner, Bernd"]
[Black "Schulz, Hans-Werner"]
[Result "1/2-1/2"]
[ECO "B54"]
[WhiteElo "1997"]
[BlackElo "1896"]
[Annotator "NA RC"]
[PlyCount "71"]
[EventDate "2024.06.25"]
[EventType "swiss"]
[EventCountry "GER"]
[SourceTitle "playchess.com"]
[Source "ChessBase"]
[SourceQuality "1"]
[TimeControl "40/5400+30:1800+30"]

1. e4 {[%emt 0:00:05]} c5 {[%emt 0:00:05]} 2. Nf3 {[%emt 0:00:10]} a6 {[%emt 0:00:53]} 3. d4 {[%emt 0:00:08]} cxd4 {[%emt 0:00:08]} 4. Nxd4 {[%emt 0:00:06]} d6 {[%emt 0:00:57]} 5. c4 {[%emt 0:00:22]} g6 {[%emt 0:02:03]} 6. Nc3 {[%emt 0:00:18] B54: Sicilian: 2...d6 3 d4 cxd4 4 Nxd4, Unusual Lines .} Bg7 {[%emt 0:00:03]} 7. Be3 {[%emt 0:00:32]} Qa5 {[%emt 0:00:43]} 8. Be2 {[%emt 0:00:38]} Bd7 {[%emt 0:02:51]} 9. O-O {[%emt 0:01:22]} Nf6 {[%emt 0:00:46]} 10. f3 {[%emt 0:03:32]} O-O {[%emt 0:01:25]} 11. Qe1 {[%emt 0:01:01]} Nc6 {[%emt 0:01:22]} 12. Nb3 {[%emt 0:01:06]} Qd8 {[%emt 0:03:43]} 13. Qf2 {[%emt 0:00:30]} Ne5 {[%emt 0:12:05]} 14. Rac1 {[%emt 0:04:59]} Rc8 {[%emt 0:01:10]} 15. Nd5 {[%emt 0:01:25]} Nxd5 {[%emt 0:01:41]} 16. cxd5 {[%emt 0:00:07]} Ba4 {[%emt 0:03:23]} 17. Nd4 {[%emt 0:07:50]} Nd7 {[%emt 0:13:15]} 18. b3 {[%emt 0:00:44]} Bxd4 {[%emt 0:00:04]} 19. Bxd4 {[%emt 0:00:13]} Bb5 {[%emt 0:00:14]} 20. Bxb5 {[%emt 0:00:18]} axb5 {[%emt 0:00:02]} 21. Rc2 {[%emt 0:10:05]} Qa5 {[%emt 0:08:10]} 22. Rfc1 {[%emt 0:02:36]} Rxc2 {[%emt 0:00:04]} 23. Rxc2 {[%emt 0:00:25]} f6 {[%emt 0:03:58]} 24. h3 {[%emt 0:00:45]} Ra8 $16 {[%emt 0:06:04]} 25. Kh2 {[%emt 0:03:43]} Qd8 {[%emt 0:00:51]} 26. Qe2 {[%emt 0:00:28]} Qa5 {[%emt 0:02:13]} 27. Qd1 {[%emt 0:01:18]} Kf7 {[%emt 0:00:39]} 28. Qc1 {[%emt 0:00:25]} b6 {[%emt 0:11:27]} 29. Be3 {[%emt 0:24:58]} g5 {[%emt 0:00:42]} 30. Bd2 {[%emt 0:00:42]} Qa6 {[%emt 0:01:24]} 31. Be3 {[%emt 0:04:41]} Rb8 {[%emt 0:02:09]} 32. g3 {[%emt 0:08:47]} b4 {[%emt 0:02:53]} 33. Kg2 {[%emt 0:01:47]} Ra8 {[%emt 0:01:30]} 34. Qd2 {[%emt 0:01:56]} Qb5 {[%emt 0:03:10]} 35. Rc4 {[%emt 0:12:29]} Qa5 {[%emt 0:01:16]} 36. Rc2 {[%emt 0:07:59]} 1/2-1/2